[Event "1000GM Memorial Day NY IM-B 2023"]
[Site "New York"]
[Date "2023.05.27"]
[Round "3.3"]
[White "Espinosa, Pedro"]
[Black "Pang, Qi"]
[Result "1/2-1/2"]
[ECO "D13"]
[WhiteElo "2229"]
[BlackElo "2165"]
[Annotator "TA"]
[PlyCount "78"]
[EventDate "2023.05.23"]
[EventType "schev"]
[EventCountry "USA"]
[SourceTitle "playchess.com"]
[Source "ChessBase"]
[SourceQuality "1"]
[TimeControl "5400+30"]

{[%evp 15,78,28,28,23,35,35,34,41,38,49,48,38,76,56,74,71,136,120,130,89,115,114,125,40,42,45,59,59,69,88,88,0,0,0,9,0,0,7,26,26,77,0,0,-394,0,0,0,0,0,0,0,0,0,0,0,0,0,0,0,0,0,-31,-32,-99,0]} 1. d4 {[%emt 0:00:02]} d5 {[%emt 0:00:04]} 2. c4 {[%emt 0:00:05]} c6 {[%emt 0:00:03]} 3. cxd5 {[%emt 0:00:26]} cxd5 {[%emt 0:00:04]} 4. Bf4 {[%emt 0:00:13]} Nc6 {[%emt 0:00:18]} 5. e3 {[%emt 0:00:28]} Nf6 {[%emt 0:00:07]} 6. Nc3 {[%emt 0:00:33]} a6 {[%emt 0:00:05]} 7. Be2 {[%emt 0:00:23] now supersedes 7.Bd3.} Bf5 {[%emt 0:02:52]} 8. Nf3 {[%emt 0:00:15]} e6 {[%emt 0:02:59]} 9. Qb3 {[%emt 0:00:18] D13: Slav Defence: Exchange variation without ...Bf5.} Bd6 {[%emt 0:24:08]} 10. Bxd6 {[%emt 0:00:51]} (10. Qxb7 Na5 $15) 10... Qxd6 {[%emt 0:00:08]} 11. Qxb7 {[%emt 0:00:33] White is slightly better.} O-O {[%emt 0:01:27]} ({Not} 11... Rb8 12. Qxa6 O-O 13. O-O $16) 12. Qb3 $1 {[%emt 0:00:15]} (12. Bxa6 $2 {perishes.} Rab8 $19) 12... Rfb8 {[%emt 0:12:03]} 13. Qa3 {[%emt 0:00:50]} Nb4 {[%emt 0:05:31] Threatens to win with ...Nc2+.} 14. O-O {[%emt 0:01:59]} Qd8 {[%emt 0:05:22]} 15. Ne1 {[%emt 0:07:32]} Qc7 {[%emt 0:05:47] [#]} (15... a5 $142) 16. Rc1 $1 $16 {[%emt 0:04:39]} a5 {[%emt 0:03:10]} 17. Qa4 {[%emt 0:29:45]} Qb6 {[%emt 0:01:29]} 18. Qd1 {[%emt 0:08:24]} Ne4 {[%emt 0:02:50]} 19. Nxe4 {[%emt 0:02:36]} (19. Na4 $16 Qd6 20. a3) 19... Bxe4 $14 {[%emt 0:00:14]} 20. Qa4 {[%emt 0:03:16]} h6 {[%emt 0:03:03]} 21. Rc5 {[%emt 0:02:19] [#] Black must now prevent a3.} Rc8 $146 {[%emt 0:08:17]} ({Predecessor:} 21... e5 22. Nf3 exd4 23. exd4 Nd3 24. Bxd3 Bxd3 25. Re1 Be4 26. Qa3 Qb4 27. Qc3 Qxc3 28. bxc3 a4 29. Ne5 a3 {0-1 Nikolic,P (2606)-Van Foreest,J (2541) NED-chT 1516 2015 (6.5)}) 22. a3 {[%emt 0:03:04]} Na2 {[%emt 0:01:05]} 23. Rxc8+ {[%emt 0:01:44]} ({Better is} 23. Qb5 $16 Qxb5 24. Bxb5) 23... Rxc8 $11 {[%emt 0:00:07]} 24. Nd3 {[%emt 0:01:54]} Bxd3 $1 {[%emt 0:05:08]} 25. Bxd3 {[%emt 0:00:03]} Qxb2 {[%emt 0:00:21]} 26. Qxa5 {[%emt 0:01:37]} Qc3 {[%emt 0:02:40]} 27. Qa6 {[%emt 0:04:31]} Rc6 {[%emt 0:04:57] [#]} (27... Nc1 $11 {keeps the balance.} 28. Bb5 Nb3) 28. Rb1 {[%emt 0:03:31]} Nb4 {[%emt 0:04:26]} 29. Qa8+ {[%emt 0:01:38]} ({Much weaker is} 29. axb4 Rxa6 30. Bxa6 Qc2 $17) 29... Rc8 {[%emt 0:00:09]} 30. Qxc8+ {[%emt 0:00:41]} Qxc8 {[%emt 0:00:01]} 31. axb4 {[%emt 0:00:04][%mdl 4096] Endgame KQ-KRB} Qc3 {[%emt 0:01:13]} 32. Bf1 {[%emt 0:02:18]} Qc2 {[%emt 0:03:30]} 33. Ra1 {[%emt 0:00:17]} g5 {[%emt 0:00:08]} 34. b5 {[%emt 0:00:53]} Qb2 {[%emt 0:00:05]} 35. Ra8+ {[%emt 0:03:17]} Kg7 {[%emt 0:00:04]} 36. h3 {[%emt 0:00:23]} Qb1 {[%emt 0:00:09]} 37. Rb8 {[%emt 0:00:35]} h5 {[%emt 0:00:41][%cal Bh6h5,Bh5h4][%mdl 32]} 38. b6 {[%emt 0:00:39]} h4 {[%emt 0:00:15][%mdl 1024] Black has compensation.} 39. b7 {[%emt 0:00:55]} (39. Rb7 $1 $15) 39... Qb6 {[%emt 0:00:30] Weighted Error Value: White=0.16 (very precise) /Black=0.08 (flawless)} (39... Kf6 $17 40. g3 hxg3 41. fxg3 Qb6) 1/2-1/2

[Event "1000GM Memorial Day NY IM-B 2023"]
[Site "New York"]
[Date "2023.05.27"]
[Round "3.4"]
[White "Chen, Justin"]
[Black "Barbosa, Oliver"]
[Result "1-0"]
[ECO "D12"]
[WhiteElo "2333"]
[BlackElo "2492"]
[Annotator "TA"]
[PlyCount "77"]
[EventDate "2023.05.23"]
[EventType "schev"]
[EventCountry "USA"]
[SourceTitle "playchess.com"]
[Source "ChessBase"]
[SourceQuality "1"]
[TimeControl "5400+30"]

{[%evp 15,77,28,31,10,11,8,15,20,24,14,20,17,22,13,46,39,43,39,63,53,64,59,287,268,293,234,233,133,139,94,94,77,85,100,101,93,87,75,88,84,160,159,152,38,59,55,682,620,1006,944,1226,1342,1326,1041,1801,1781,29968,3946,29974,7637,29969,29968,6432,5707]} 1. d4 {[%emt 0:00:06]} d5 {[%emt 0:00:37]} 2. c4 {[%emt 0:00:04]} c6 {[%emt 0:00:06]} 3. Nf3 {[%emt 0:00:24]} Nf6 {[%emt 0:00:08]} 4. e3 {[%emt 0:00:07]} Bf5 {[%emt 0:01:10]} 5. Nc3 {[%emt 0:00:06]} e6 {[%emt 0:00:09]} 6. Nh4 {[%emt 0:00:41]} Be4 {[%emt 0:00:23]} 7. f3 {[%emt 0:00:13]} Bg6 {[%emt 0:00:07]} 8. Qb3 {[%emt 0:00:03]} Qc7 {[%emt 0:00:07]} 9. cxd5 {[%emt 0:00:06] D12: Slav Defence: 3 Nf3 Nf6 4 e3 Bf5.} cxd5 {[%emt 0:02:05]} 10. Nxg6 {[%emt 0:00:11]} hxg6 {[%emt 0:00:08]} 11. Bd2 {[%emt 0:00:03] The position is equal.} Nc6 {[%emt 0:02:24]} 12. O-O-O {[%emt 0:00:11]} a6 {[%emt 0:02:29]} 13. Kb1 {[%emt 0:00:13]} Bd6 {[%emt 0:01:21] [#]} (13... Rxh2 $2 14. Rxh2 O-O-O 15. Rh1 $18) 14. h4 $146 {[%emt 0:04:46]} ({Predecessor:} 14. Rc1 Kf8 15. Qd1 Bb4 16. Bd3 Bxc3 17. Bxc3 Rxh2 18. e4 Qg3 19. e5 Nh5 20. Qb3 Rxh1 21. Rxh1 Qxg2 22. Rxh5 gxh5 23. Qxb7 {0-1 Goganov,A (2581)-Demidov,M (2523) Anapa Sea Harbor Cup Blitz 2021 (12)}) 14... O-O {[%emt 0:02:30]} 15. Rc1 {[%emt 0:01:30]} b5 {[%emt 0:03:48]} 16. Qd1 {[%emt 0:02:20]} Qb6 {[%emt 0:13:05]} 17. g4 {[%emt 0:17:31]} Rfc8 {[%emt 0:06:54]} 18. h5 {[%emt 0:05:09]} Na5 $2 {[%emt 0:05:00]} (18... gxh5 $14 19. g5 Nd7) 19. hxg6 $18 {[%emt 0:00:57]} fxg6 {[%emt 0:00:35]} 20. Bd3 {[%emt 0:04:31]} Kf7 {[%emt 0:01:25]} 21. Qe2 {[%emt 0:22:54]} (21. Qc2 $18) 21... Nc4 $16 {[%emt 0:00:50]} 22. f4 {[%emt 0:02:43]} b4 {[%emt 0:09:39]} 23. Na4 {[%emt 0:00:32][%csl LRb6,LRc4]} Qb5 {[%emt 0:08:58]} 24. b3 {[%emt 0:03:59] aiming for Nc5.} Ne4 {[%emt 0:00:11] And now ...Ng3 would win.} 25. bxc4 {[%emt 0:01:17]} Qxa4 {[%emt 0:02:41]} 26. Bxe4 {[%emt 0:12:26]} b3 {[%emt 0:01:15][%csl Gb3][%cal Ra4a2] [#] Inhibits Bc2.} 27. Bc3 $1 {[%emt 0:01:54]} (27. cxd5 $2 Qxa2#) (27. Bxg6+ Kxg6 28. f5+ (28. Qd3+ $2 Kf7 $19) 28... exf5 29. gxf5+ Kf6 $17) 27... Rab8 {[%emt 0:01:59]} (27... dxe4 $142 28. c5 Be7) 28. cxd5 {[%emt 0:11:27]} Ba3 {[%emt 0:01:47] [#]} 29. dxe6+ {[%emt 0:00:13]} (29. d6 $1 $16) 29... Ke7 {[%emt 0:00:02]} 30. f5 {[%emt 0:04:41]} Bxc1 $4 {[%emt 0:02:34][%mdl 8192]} (30... gxf5 $14 31. Bxf5 (31. gxf5 bxa2+ 32. Ka1 Rb1+ {[%mdl 64] Decoy} 33. Bxb1 axb1=Q+ 34. Kxb1 Rb8+ $11) 31... bxa2+ 32. Ka1 Rb1+ {[%mdl 64] Decoy} 33. Bxb1 axb1=N 34. Kxb1 (34. Bb4+ $2 Bxb4+ {[%mdl 64] Discovered Attack} 35. Qa2 Bc3+ 36. Rxc3 Qxa2+ 37. Kxa2 Nxc3+ 38. Kb3 Nd5 $19) 34... Rb8+ 35. Bb2 Rxb2+ 36. Qxb2 Bxb2 37. Kxb2 Qb5+ 38. Kc3 Qe2) 31. Rxc1 $18 {[%emt 0:01:19]} bxa2+ {[%emt 0:15:29]} 32. Ka1 {[%emt 0:00:02]} Rb3 {[%emt 0:00:06]} 33. Bb2 {[%emt 0:01:33]} (33. Qxa2 Qxa2+ 34. Kxa2 Rcxc3 $19) (33. Bb4+ $2 Qxb4 34. Qe1 (34. Rxc8 $2 Rb1+ {[%mdl 64] Back Rank}) (34. f6+ gxf6 35. Qd1 Qa3 {[%mdl 64] Double Attack} 36. Rc2 Rb1+) 34... Rb1+ 35. Rxb1 (35. Bxb1 $2 axb1=Q+ 36. Rxb1 Qa3#) 35... axb1=Q+ 36. Qxb1 Qa3+ 37. Qa2 Qxe3 $19) 33... Rxc1+ {[%emt 0:01:51]} 34. Bxc1 {[%emt 0:00:01]} Qb4 {[%emt 0:00:53]} 35. Bb2 {[%emt 0:00:49]} (35. Qxa6 $2 {leads to mate.} Rb1+) ({Worse is} 35. Qxa2 Qc3+ 36. Bb2 Qe1+ 37. Bb1 Qb4 $11) 35... a5 {[%emt 0:02:50]} 36. Bd5 {[%emt 0:00:42]} (36. Qh2 $142 Qe1+ 37. Kxa2 Rxb2+ 38. Kxb2 Qb4+ 39. Kc2 Qc4+ 40. Kd2 Qb4+ 41. Kd1 Qa4+ 42. Bc2) 36... a4 {[%emt 0:03:15]} 37. Bxb3 {[%emt 0:00:18]} (37. Qh2 $142 Qe1+ 38. Kxa2 Rxb2+ 39. Qxb2 Qxe3 40. g5 Kd6 41. Bc4 Kc7 42. f6) 37... Qxb3 {[%emt 0:00:06]} 38. Qe1 {[%emt 0:00:52]} a3 {[%emt 0:02:04]} 39. Bc3 {[%emt 0:00:02] Ingenious play by Chen!   Weighted Error Value: White=0.13 (very precise) /Black=0.97} 1-0

[Event "1000GM Memorial Day NY IM-B 2023"]
[Site "New York"]
[Date "2023.05.27"]
[Round "3.5"]
[White "Nagy, Gabor"]
[Black "Luo, Terry"]
[Result "1/2-1/2"]
[ECO "E64"]
[WhiteElo "2468"]
[BlackElo "2321"]
[Annotator "TA"]
[PlyCount "50"]
[EventDate "2023.05.23"]
[EventType "schev"]
[EventCountry "USA"]
[SourceTitle "playchess.com"]
[Source "ChessBase"]
[SourceQuality "1"]
[TimeControl "5400+30"]

{[%evp 15,50,22,17,0,35,0,13,-18,-16,-34,-27,-44,-45,-54,-5,-9,26,-91,-31,-24,-20,-19,-12,-7,-10,-10,-10,-12,-8,-9,-8,-16,18,18,18,18,18]} 1. c4 {[%emt 0:00:51]} Nf6 {[%emt 0:00:07]} 2. Nc3 {[%emt 0:00:49]} g6 {[%emt 0:00:05]} 3. g3 {[%emt 0:00:55]} Bg7 {[%emt 0:00:04]} 4. Bg2 {[%emt 0:00:29]} O-O {[%emt 0:00:05]} 5. d4 {[%emt 0:01:13]} d6 {[%emt 0:00:09][%cal Bd7d6,Bd6c5][%mdl 32]} 6. Nf3 {[%emt 0:02:04][%cal Bg1f3,Bf3e5,Be5d3][%mdl 32]} c5 {[%emt 0:00:10]} 7. dxc5 {[%emt 0:03:03]} dxc5 {[%emt 0:00:07]} 8. Qxd8 {[%emt 0:00:15]} Rxd8 {[%emt 0:00:01]} 9. Ne5 {[%emt 0:00:18] Dodges Nc6. E64: King's Indian: Fianchetto: 6...c5 7 d5.} Nfd7 {[%emt 0:05:35]} (9... Ne8 $5 {[%cal Rg7e5]} 10. Nd3 Nc6 $11) 10. Nd3 {[%emt 0:01:23]} Nc6 {[%emt 0:02:12]} 11. Be3 {[%emt 0:03:31]} Nb6 {[%emt 0:04:44]} 12. Bxc5 {[%emt 0:05:36]} Nxc4 {[%emt 0:00:30] [#]} 13. Rc1 $146 {[%emt 0:01:38]} ({Predecessor:} 13. O-O-O Bd7 14. Nb4 Nxb4 15. Bxb4 Bc6 16. Bxc6 bxc6 17. Rxd8+ Rxd8 18. Bxe7 Rb8 19. Nd1 {1-0 Lagarde,M (2505)-Kirk,E (2216) Creon op 17th 2012 (6)}) 13... Bf5 {[%emt 0:03:05]} 14. Nb4 {[%emt 0:10:27]} Nxb2 {[%emt 0:05:27]} (14... Nxb4 $15 15. Bxb4 Bh6) 15. Ncd5 $1 $11 {[%emt 0:00:09] Black must now prevent Nxc6.} Rd7 {[%emt 0:40:26]} 16. O-O {[%emt 0:16:29]} (16. Nxc6 $11 {was the only way to keep the balance.} bxc6 17. Nxe7+ Rxe7 18. Bxe7) 16... Nxb4 {[%emt 0:04:50]} (16... Nd4 $17 17. Rfe1 e6 18. Ne7+ Kh8) 17. Bxb4 $15 {[%emt 0:00:20]} Be6 {[%emt 0:01:35]} 18. Nc7 {[%emt 0:07:02] The position is equal.} ({But not} 18. Nxe7+ Kh8 $17) 18... Rc8 {[%emt 0:01:19]} 19. Nxe6 {[%emt 0:00:08]} (19. Bxb7 $2 {is the wrong capture.} Rcxc7 20. Bc8 Rxc1 21. Rxc1 Rd4 22. Bxe6 Rxb4 $19) 19... Rxc1 {[%emt 0:00:04]} 20. Rxc1 {[%emt 0:00:12] [#] Threatening mate with Rc8+.} fxe6 {[%emt 0:00:02]} 21. Rc8+ {[%emt 0:01:08]} Kf7 {[%emt 0:00:09]} 22. Bf3 {[%emt 0:00:21]} Na4 {[%emt 0:01:10]} 23. Rb8 {[%emt 0:01:35]} Nc3 {[%emt 0:00:31]} 24. Bxc3 {[%emt 0:00:20]} Bxc3 {[%emt 0:00:05]} 25. Rxb7 {[%emt 0:00:09]} Rxb7 {[%emt 0:00:03] Weighted Error Value: White=0.17 (very precise) /Black=0.21 (precise)} 1/2-1/2

[Event "1000GM Memorial Day NY IM-B 2023"]
[Site "New York"]
[Date "2023.05.27"]
[Round "3.6"]
[White "Bisiriyu-Salam, Oluwaseun"]
[Black "Bortnyk, Mykola"]
[Result "0-1"]
[ECO "A34"]
[WhiteElo "2011"]
[BlackElo "2425"]
[Annotator "TA"]
[PlyCount "70"]
[EventDate "2023.05.23"]
[EventType "schev"]
[EventCountry "USA"]
[SourceTitle "playchess.com"]
[Source "ChessBase"]
[SourceQuality "1"]
[TimeControl "5400+30"]

{[%evp 9,70,14,14,12,12,27,21,0,0,14,6,6,9,-19,0,-33,-21,-22,-31,-31,-24,-68,-17,-55,-25,-87,-71,-134,-76,-153,-150,-159,-163,-148,-163,-162,-163,-249,-160,-139,-174,-158,0,0,190,188,192,151,153,-82,-94,-818,-806,-4997,-1084,-4793,-3464,-29976,-29977,-29977,-29976,-29968,-29946]} 1. e4 {[%emt 0:16:08]} c5 {[%emt 0:01:12]} 2. Nf3 {[%emt 0:00:21]} e6 {[%emt 0:00:26]} 3. c4 {[%emt 0:00:13]} Nc6 {[%emt 0:00:57]} 4. Be2 {[%emt 0:00:49]} Nf6 {[%emt 0:01:31]} 5. Nc3 {[%emt 0:00:19]} Be7 {[%emt 0:01:50]} 6. O-O {[%emt 0:00:26] A34: Symmetrical English: 2 Nc3, lines with ...d5.} d5 {[%emt 0:00:35]} 7. exd5 {[%emt 0:02:08]} exd5 {[%emt 0:00:04]} 8. cxd5 {[%emt 0:00:19] The position is equal.} Nxd5 {[%emt 0:00:06]} 9. d4 {[%emt 0:00:11]} Nxc3 {[%emt 0:01:43]} 10. bxc3 {[%emt 0:00:16]} cxd4 {[%emt 0:00:43]} 11. cxd4 {[%emt 0:00:16] [#] And now d5 would win.} O-O {[%emt 0:00:24]} 12. Be3 {[%emt 0:05:03]} Be6 {[%emt 0:01:55][%cal Bc8e6,Be6d5,Bd5e4][%mdl 32] [#]} 13. Qc1 $146 {[%emt 0:08:05]} ({Predecessor:} 13. Qd2 Bd5 14. Rab1 Bf6 15. Rfd1 Qe7 16. Ne1 Rfd8 17. Bf3 Rd7 18. Qb2 Bxf3 19. Nxf3 {½-½ Hedke,F (2225)-Van Son,L (2144) Oberliga Nord W 1920 2019 (5.4)}) 13... Rc8 {[%emt 0:02:15][%cal Oc6d4]} 14. Qb2 {[%emt 0:00:25]} Bd5 {[%emt 0:04:32]} 15. Rfd1 {[%emt 0:01:29]} Nb4 {[%emt 0:01:37]} ({Black should try} 15... Bd6 $15) 16. Rd2 {[%emt 0:00:30]} Be4 {[%emt 0:01:07]} 17. Rc1 {[%emt 0:05:08]} (17. Ne1 $11 {keeps the balance.}) 17... Qa5 $36 {[%emt 0:01:35][%mdl 2048] Black has strong initiative.} 18. Bc4 {[%emt 0:00:27]} (18. Bf1 $142) 18... b5 {[%emt 0:04:04]} (18... Nd5 $142 19. Bxd5 Bxd5 20. Rxc8 Rxc8) 19. Bf1 {[%emt 0:07:22]} ({Better is} 19. Bb3) 19... Rxc1 {[%emt 0:04:59]} 20. Qxc1 {[%emt 0:00:06]} Nxa2 {[%emt 0:00:06] Black is much more active.} 21. Qa1 {[%emt 0:02:21]} Bd5 {[%emt 0:00:03]} 22. Rb2 {[%emt 0:06:12]} b4 {[%emt 0:00:58] Hoping for ...Rc8.} 23. Ne5 {[%emt 0:00:51]} (23. Nd2 {was necessary.} Qa4 24. Bc4 Bxc4 25. Nxc4) 23... Rc8 {[%emt 0:01:18] aiming for ...b3.} 24. Nc4 {[%emt 0:04:36]} Bxc4 {[%emt 0:00:08]} (24... Rxc4 $2 25. Rxa2 (25. Qxa2 $2 Qxa2 26. Rxa2 b3 $19) 25... Qb6 26. Ra6 $18) 25. Bxc4 {[%emt 0:00:03]} b3 {[%emt 0:16:01]} (25... Rxc4 $17 26. Rxa2 Qd5 27. Rxa7 Bf8) 26. Bd2 $11 {[%emt 0:12:29]} (26. Bxb3 $2 Rc1+ 27. Qxc1 Nxc1 $19) 26... Qxd2 {[%emt 0:00:13]} 27. Rxd2 $18 {[%emt 0:03:06]} Rxc4 {[%emt 0:00:03] [#]} 28. Rd1 {[%emt 0:06:13] Dodges Rc1. Qb2 would be deadly.} a5 {[%emt 0:00:42][%cal Ba7a5,Ba5a4,Ba4a3][%mdl 32]} 29. Qb1 $2 {[%emt 0:02:23]} ({Much weaker is} 29. Re1 $6 Bb4 30. Qb2 (30. Re8+ Bf8 $17) 30... Bxe1 $11) (29. d5 $16 Bf6 30. d6) 29... a4 $17 {[%emt 0:00:23] Threatens to win with ...Nc3.} 30. Qe4 $2 {[%emt 0:01:56][%mdl 8192] Loses the game.} (30. Re1 Bf8 31. Kf1 Rc2 $19) (30. Qd3 $17 Rc3 31. Qe2) 30... Bf8 $19 {[%emt 0:00:14]} 31. Qd5 {[%emt 0:06:23]} Rc1 {[%emt 0:00:43]} 32. Rxc1 {[%emt 0:00:49]} Nxc1 {[%emt 0:00:04]} 33. Qc4 {[%emt 0:02:57]} b2 {[%emt 0:00:08] Black mates.} 34. Qc2 {[%emt 0:01:10]} a3 {[%emt 0:00:23]} 35. Kf1 {[%emt 0:01:46]} Na2 {[%emt 0:00:20] Magnificent play by Bortnyk!   Weighted Error Value: White=0.84/Black=0.30} 0-1

[Event "1000GM Memorial Day NY IM-B 2023"]
[Site "New York"]
[Date "2023.05.27"]
[Round "4.1"]
[White "Lee, Alice"]
[Black "Nakada, Akira"]
[Result "1/2-1/2"]
[ECO "E46"]
[WhiteElo "2391"]
[BlackElo "2321"]
[Annotator "TA"]
[PlyCount "68"]
[EventDate "2023.05.23"]
[EventType "schev"]
[EventCountry "USA"]
[SourceTitle "playchess.com"]
[Source "ChessBase"]
[SourceQuality "1"]
[TimeControl "5400+30"]

{[%evp 9,68,-2,-4,0,0,0,0,2,8,4,31,14,26,25,25,0,48,55,48,39,91,93,85,97,81,74,70,62,66,76,66,67,72,12,14,0,2,0,0,11,0,0,4,0,0,0,2,0,0,0,0,0,4,0,5,5,11,0,0,0,0]} 1. d4 {[%emt 0:00:01]} Nf6 {[%emt 0:03:58]} 2. c4 {[%emt 0:00:06]} e6 {[%emt 0:00:04]} 3. Nc3 {[%emt 0:00:05]} Bb4 {[%emt 0:00:12]} 4. e3 {[%emt 0:00:06]} O-O {[%emt 0:00:36]} 5. Nge2 {[%emt 0:00:05]} c6 {[%emt 0:07:42]} 6. a3 {[%emt 0:00:56] E46: Nimzo-Indian: Rubinstein: 4 e3 0-0 5 Ne2 without early Bd3.} Ba5 {[%emt 0:00:04]} 7. Ng3 {[%emt 0:02:45]} d5 {[%emt 0:01:44]} 8. Bd3 {[%emt 0:01:58]} Nbd7 {[%emt 0:06:11] was the old line (8...dxc4).} 9. O-O {[%emt 0:03:23]} e5 {[%emt 0:02:26]} 10. cxd5 {[%emt 0:03:57]} cxd5 {[%emt 0:00:07] [#]} 11. b4 $146 {[%emt 0:06:31]} ({Predecessor:} 11. Bf5 Re8 12. Bd2 g6 13. Bh3 exd4 14. exd4 Nf8 15. Bxc8 Rxc8 16. Qb3 Qb6 17. Qxb6 Bxb6 {½-½ Bersamina,P (2391)-Narayanan,S (2461) Asia-ch U20 Tagaytay City 2014 (3)}) 11... Bb6 {[%emt 0:01:36]} 12. Bf5 {[%emt 0:03:08]} exd4 {[%emt 0:12:02]} (12... Re8 $11 {was preferrable.}) 13. exd4 $14 {[%emt 0:00:27]} Re8 {[%emt 0:03:07]} 14. Bg5 {[%emt 0:06:05] And now Nxd5 would win.} Nf8 {[%emt 0:05:33]} ({Black should play} 14... h6 $1 $14 15. Bxd7 {[%mdl 64] Remove Defender} Bxd7 16. Bxf6 {[%mdl 64] Remove Defender} Qxf6) 15. Bxf6 $16 {[%emt 0:06:29]} Qxf6 {[%emt 0:01:09]} 16. Nxd5 {[%emt 0:00:57]} Qxd4 {[%emt 0:07:02]} 17. Qxd4 {[%emt 0:02:22]} (17. Qf3 {keeps more tension.} Ng6 18. Rad1 Qe5 19. Be4) 17... Bxd4 {[%emt 0:00:06]} 18. Rad1 {[%emt 0:24:13]} Bb6 {[%emt 0:00:54] Black is weak on the light squares} 19. Bxc8 {[%emt 0:00:59]} Raxc8 {[%emt 0:00:05]} 20. Nf5 {[%emt 0:00:16] [#] Black must now prevent Nfe7+. Excellent horsemanship.} Rcd8 {[%emt 0:05:36]} 21. a4 {[%emt 0:04:30] White is more active.} (21. g3 $16) 21... Ne6 $11 {[%emt 0:10:05] The position is equal.} 22. a5 {[%emt 0:01:20]} Bd4 {[%emt 0:03:01]} 23. Nxd4 {[%emt 0:05:02]} Rxd5 {[%emt 0:00:06]} 24. Nxe6 {[%emt 0:00:19]} fxe6 {[%emt 0:00:06][%mdl 4096] Endgame KRR-KRR} 25. Rc1 {[%emt 0:01:03]} Red8 {[%emt 0:00:41]} 26. g3 {[%emt 0:04:36]} a6 {[%emt 0:03:23]} 27. Rc7 {[%emt 0:01:54]} R8d7 {[%emt 0:00:14]} 28. Rfc1 {[%emt 0:02:42]} Rxc7 {[%emt 0:00:49]} 29. Rxc7 {[%emt 0:00:05] KR-KR} Rb5 {[%emt 0:00:03]} 30. Rc4 {[%emt 0:00:20]} Kf7 {[%emt 0:00:48]} 31. Kg2 {[%emt 0:00:24]} g5 {[%emt 0:00:55]} 32. h4 {[%emt 0:00:52]} h6 {[%emt 0:00:39]} 33. hxg5 {[%emt 0:05:44]} hxg5 {[%emt 0:00:19]} 34. Kf3 {[%emt 0:01:07]} Kf6 {[%emt 0:01:19] Weighted Error Value: White=0.07 (flawless) /Black=0.07 (flawless)} 1/2-1/2